[Event "French Top 16-A 2024"]
[Site "Chartres"]
[Date "2024.06.05"]
[Round "7.14"]
[White "Hamdouchi, Hicham"]
[Black "Flom, Gabriel"]
[Result "1-0"]
[ECO "C41"]
[WhiteElo "2528"]
[BlackElo "2431"]
[Annotator "TA"]
[PlyCount "81"]
[EventDate "2024.06.01"]
[EventType "team-tourn"]
[EventCountry "FRA"]
[SourceTitle "playchess.com"]
[Source "ChessBase"]
[SourceQuality "1"]
[TimeControl "40/5400+30:1800+30"]

{[%evp 17,81,40,38,37,48,36,35,34,27,20,36,37,56,59,60,60,61,69,66,61,54,54,52,33,67,70,57,40,131,149,142,128,97,120,140,29,72,73,69,78,79,62,62,58,50,50,50,50,50,50,150,7,8,8,8,15,91,48,446,418,458,397,444,453,5114,487]} 1. e4 {[%emt 0:00:04]} d6 {[%emt 0:00:05]} 2. d4 {[%emt 0:01:12]} Nf6 {[%emt 0:00:06]} 3. Nc3 {[%emt 0:00:07]} e5 {[%emt 0:00:05]} 4. Nf3 {[%emt 0:01:33]} Nbd7 {[%emt 0:00:14]} 5. Bc4 {[%emt 0:00:23]} Be7 {[%emt 0:00:03]} 6. O-O {[%emt 0:00:17]} O-O {[%emt 0:00:14]} 7. a4 {[%emt 0:00:24][%cal Ba2a4,Ba4a5][%mdl 32]} c6 {[%emt 0:00:09]} 8. Re1 {[%emt 0:00:08]} h6 {[%emt 0:00:05]} 9. h3 {[%emt 0:00:27]} Re8 {[%emt 0:00:04]} 10. a5 {[%emt 0:03:12]} Qc7 {[%emt 0:01:00]} 11. Ba2 {[%emt 0:01:14]} Rb8 {[%emt 0:01:17]} 12. Be3 {[%emt 0:05:21] White is slightly better.} b5 {[%emt 0:03:58]} 13. axb6 {[%emt 0:00:13]} axb6 {[%emt 0:00:35]} 14. d5 {[%emt 0:00:33]} b5 {[%emt 0:10:17]} 15. dxc6 {[%emt 0:08:01]} Qxc6 {[%emt 0:00:03][%cal Od7c5]} 16. Nd5 {[%emt 0:04:38]} Nc5 {[%emt 0:18:32][%cal Bd7c5,Bc5a4,Ba4b2][%mdl 32]} 17. Nxf6+ {[%emt 0:24:01]} Bxf6 {[%emt 0:00:08]} 18. b4 {[%emt 0:00:11]} Na4 {[%emt 0:04:40][%cal Oa4c3]} (18... Nxe4 19. Bd5 Qc3 20. Bxe4 $18) 19. Ba7 {[%emt 0:03:55]} Rb7 {[%emt 0:01:53]} 20. Bd5 $36 {[%emt 0:00:46][%mdl 2048] White has good play.} Qc7 {[%emt 0:00:03]} 21. Bxb7 {[%emt 0:02:25]} Bxb7 {[%emt 0:00:04]} 22. Qd3 {[%emt 0:08:07]} Qc6 {[%emt 0:00:27] [#]} (22... Bc6 $1 $14 23. Be3 d5) 23. c4 $1 $16 {[%emt 0:03:19]} Nb2 {[%emt 0:01:16]} (23... bxc4 24. Qc2 Nb6 25. b5 (25. Bxb6 Qxb6 26. Qxc4 g6 $18)) 24. cxb5 {[%emt 0:01:29]} Nxd3 {[%emt 0:00:02]} 25. bxc6 {[%emt 0:00:09]} Bxc6 {[%emt 0:00:03] [#]} 26. Ra6 {[%emt 0:07:39]} Nxe1 {[%emt 0:04:08]} 27. Rxc6 {[%emt 0:00:07]} Nxf3+ {[%emt 0:05:56]} 28. gxf3 $11 {[%emt 0:00:08][%cal Ob4b5][%mdl 4096] Endgame. aiming for b5! KRB-KRB} Ra8 {[%emt 0:06:26]} 29. Rc7 {[%emt 0:00:19] Black must now prevent b5.} Kf8 {[%emt 0:00:28]} 30. b5 {[%emt 0:02:20][%cal Bb4b5,Bb5b6][%mdl 32] And now b6 would win. White is more active.} Bd8 {[%emt 0:00:03]} 31. Rb7 {[%emt 0:00:30]} Ke8 {[%emt 0:02:54]} 32. Kg2 {[%emt 0:06:34]} Rc8 {[%emt 0:01:24]} 33. b6 $1 {[%emt 0:12:55][%cal Ob7f7]} h5 {[%emt 0:16:38] [#]} (33... Bh4 $14) 34. Kg3 {[%emt 0:01:07]} (34. Rxf7 $1 $16 Bxb6 (34... Kxf7 $2 {loses.} 35. b7 $18) 35. Rxg7) 34... h4+ {[%emt 0:01:33]} 35. Kg4 {[%emt 0:02:29][%cal Ob7f7] Threatening Rxf7!} (35. Kg2 $5 g6 36. Rxf7 Bxb6 (36... Kxf7 $2 37. b7 $18) 37. Rh7 Bxa7 38. Rxa7 $11) 35... g6 {[%emt 0:00:09][%cal Of7f5] ( -> ...f5+!)} 36. f4 {[%emt 0:00:20]} Rc4 {[%emt 0:03:36]} (36... exf4 $1 $11 37. f3 (37. Kxf4 Rc2 $11) 37... Bf6) 37. Rb8 {[%emt 0:00:56]} f5+ $2 {[%emt 0:00:23][%mdl 8192] Black cannot hold the game after this.} 38. Kf3 $1 $18 {[%emt 0:00:09]} fxe4+ {[%emt 0:02:27]} 39. Kg4 {[%emt 0:00:45]} e3 {[%emt 0:06:04]} 40. fxe3 {[%emt 0:00:32]} exf4 {[%emt 0:00:02]} (40... Rb4 $142 41. b7 Kf7 42. Rxd8 Rxb7) 41. exf4 {[%emt 0:30:52] Weighted Error Value: White=0.16 (very precise) /Black=0.37.  Loses game:     	---       	Black=1      Mistake:       	White=3     	Black=4      Inaccurate:     	White=1     	Black=2      OK:         	White=13    	Black=10     Best:        	White=6     	Black=4      Strong:       	White=2     	---} (41. Rxd8+ $142 Kxd8 42. b7 (42. exf4 $2 {too greedy.} Kc8 $19) 42... fxe3+ 43. Kf3) 1-0

[Event "French Top 16-A 2024"]
[Site "Chartres"]
[Date "2024.06.05"]
[Round "7.14"]
[White "Degraeve, Jean-Marc"]
[Black "Hejazipour, Mitra"]
[Result "1/2-1/2"]
[ECO "B22"]
[WhiteElo "2463"]
[BlackElo "2376"]
[Annotator "RC"]
[PlyCount "136"]
[EventDate "2024.06.01"]
[EventType "team-tourn"]
[EventCountry "FRA"]
[SourceTitle "playchess.com"]
[Source "ChessBase"]
[SourceQuality "1"]
[TimeControl "40/5400+30:1800+30"]

1. e4 {[%emt 0:00:04]} c5 {[%emt 0:03:22]} 2. c3 {[%emt 0:01:14]} Nf6 {[%emt 0:00:31]} 3. e5 {[%emt 0:00:10]} Nd5 {[%emt 0:00:10]} 4. Bc4 {[%emt 0:02:03]} e6 {[%emt 0:07:26]} 5. Nf3 {[%emt 0:01:06]} d6 {[%emt 0:00:21]} 6. d4 {[%emt 0:00:21]} cxd4 {[%emt 0:00:20]} 7. cxd4 {[%emt 0:00:07]} Be7 {[%emt 0:00:14]} 8. O-O {[%emt 0:00:16]} O-O {[%emt 0:00:22]} 9. Qe2 {[%emt 0:00:18]} a6 {[%emt 0:01:01]} 10. Qe4 {[%emt 0:11:40]} dxe5 {[%emt 0:00:50]} 11. dxe5 {[%emt 0:00:28]} Nd7 {[%emt 0:00:48]} 12. Rd1 {[%emt 0:06:07]} b5 {[%emt 0:02:00]} 13. Bd3 {[%emt 0:05:55]} f5 {[%emt 0:06:00]} 14. exf6 {[%emt 0:01:15]} N7xf6 {[%emt 0:00:06]} 15. Qe2 {[%emt 0:05:00]} Bc5 {[%emt 0:02:18]} 16. Nc3 {[%emt 0:06:48]} Qe8 {[%emt 0:22:14]} 17. Ng5 {[%emt 0:03:15]} Nxc3 {[%emt 0:08:29]} 18. bxc3 {[%emt 0:00:17]} e5 {[%emt 0:00:57]} 19. Be3 {[%emt 0:02:04]} Bxe3 {[%emt 0:07:56]} 20. Qxe3 {[%emt 0:01:02]} Bb7 {[%emt 0:01:14]} 21. Bc2 {[%emt 0:08:09]} Kh8 {[%emt 0:04:50]} 22. Rd6 {[%emt 0:06:01]} Qh5 {[%emt 0:04:51]} 23. f3 {[%emt 0:04:05]} e4 {[%emt 0:12:09]} 24. Bxe4 {[%emt 0:11:16]} Rae8 {[%emt 0:01:39]} 25. Re6 {[%emt 0:10:42]} Bc8 {[%emt 0:05:22]} 26. Rxe8 {[%emt 0:07:09]} Rxe8 {[%emt 0:00:13]} 27. Qd2 {[%emt 0:02:15]} h6 {[%emt 0:00:44]} 28. Bc6 {[%emt 0:00:04]} hxg5 {[%emt 0:06:26]} 29. Bxe8 {[%emt 0:00:07]} Qxe8 {[%emt 0:00:30]} 30. Qxg5 {[%emt 0:00:20]} Qc6 {[%emt 0:00:14]} 31. Qe5 {[%emt 0:02:24]} Be6 {[%emt 0:00:20]} 32. a3 {[%emt 0:01:10]} Nd5 {[%emt 0:00:21]} 33. Rd1 {[%emt 0:02:07]} Bf7 {[%emt 0:00:16]} 34. Rd4 {[%emt 0:00:57]} Nxc3 {[%emt 0:01:37]} 35. Qb8+ {[%emt 0:00:36]} Kh7 {[%emt 0:00:55]} 36. Rh4+ {[%emt 0:00:11]} Kg6 {[%emt 0:00:01]} 37. Qe5 {[%emt 0:00:42]} Be6 {[%emt 0:00:39]} 38. Qh5+ {[%emt 0:00:45]} Kf6 {[%emt 0:00:01]} 39. Rf4+ {[%emt 0:00:12]} Ke7 {[%emt 0:00:04]} 40. Qg5+ {[%emt 0:00:08]} Kd6 {[%emt 0:01:04]} 41. Qd8+ {[%emt 0:31:29]} Bd7 {[%emt 0:04:40]} 42. Rd4+ {[%emt 0:00:00]} Nd5 {[%emt 0:00:57]} 43. Qb8+ {[%emt 0:00:00]} Ke6 {[%emt 0:05:08]} 44. Qg8+ {[%emt 0:00:00]} Kd6 {[%emt 0:00:06]} 45. h4 {[%emt 0:00:00]} a5 {[%emt 0:12:42]} 46. Qxg7 {[%emt 0:00:00]} b4 {[%emt 0:00:19]} 47. axb4 {[%emt 0:00:00]} axb4 {[%emt 0:00:02]} 48. Qf8+ {[%emt 0:00:00]} Kc7 {[%emt 0:00:32]} 49. Rxb4 {[%emt 0:00:00]} Nxb4 {[%emt 0:01:06]} 50. Qxb4 {[%emt 0:00:00]} Qc1+ {[%emt 0:01:17]} 51. Kh2 {[%emt 0:00:00]} Qe3 {[%emt 0:00:22]} 52. Kg3 {[%emt 0:00:00]} Qe5+ {[%emt 0:01:03]} 53. Qf4 {[%emt 0:00:00]} Kd6 {[%emt 0:00:03]} 54. h5 {[%emt 0:00:00]} Bf5 {[%emt 0:01:23]} 55. Qxe5+ {[%emt 0:00:00]} Kxe5 {[%emt 0:00:02]} 56. Kf2 {[%emt 0:00:00]} Bh7 {[%emt 0:02:21]} 57. Kg3 {[%emt 0:03:33]} Kf5 {[%emt 0:01:58]} 58. Kh4 {[%emt 0:00:07]} Kf4 {[%emt 0:02:21]} 59. g4 {[%emt 0:00:18]} Bc2 {[%emt 0:02:07]} 60. g5 {[%emt 0:01:08]} Kf5 {[%emt 0:00:13]} 61. h6 {[%emt 0:00:20]} Kg6 {[%emt 0:00:20]} 62. f4 {[%emt 0:00:06]} Bf5 {[%emt 0:00:56]} 63. Kg3 {[%emt 0:00:04]} Kh5 {[%emt 0:00:31]} 64. Kf3 {[%emt 0:00:33]} Kh4 {[%emt 0:00:11]} 65. Ke3 {[%emt 0:00:52]} Kg3 {[%emt 0:00:12]} 66. Kd4 {[%emt 0:00:11]} Kxf4 {[%emt 0:00:06]} 67. g6 {[%emt 0:00:03]} Bxg6 {[%emt 0:00:06]} 68. h7 {[%emt 0:00:01]} Bxh7 {[%emt 0:04:31]} 1/2-1/2

[Event "French Top 16-A 2024"]
[Site "Chartres"]
[Date "2024.06.05"]
[Round "7.15"]
[White "Degraeve, Remy"]
[Black "Delorme, Axel"]
[Result "0-1"]
[ECO "C54"]
[WhiteElo "2433"]
[BlackElo "2489"]
[Annotator "RC"]
[PlyCount "50"]
[EventDate "2024.06.01"]
[EventType "team-tourn"]
[EventCountry "FRA"]
[SourceTitle "playchess.com"]
[Source "ChessBase"]
[SourceQuality "1"]
[TimeControl "40/5400+30:1800+30"]

1. e4 {[%emt 0:00:03]} e5 {[%emt 0:00:10]} 2. Nf3 {[%emt 0:00:04]} Nc6 {[%emt 0:00:04]} 3. Bc4 {[%emt 0:00:03]} Nf6 {[%emt 0:00:22]} 4. d3 {[%emt 0:00:03]} Bc5 {[%emt 0:00:19]} 5. O-O {[%emt 0:00:06]} d6 {[%emt 0:06:31]} 6. c3 {[%emt 0:00:08]} a6 {[%emt 0:01:51]} 7. a4 {[%emt 0:00:04]} Ba7 {[%emt 0:01:45]} 8. Re1 {[%emt 0:00:07]} h6 {[%emt 0:00:14]} 9. Nbd2 {[%emt 0:00:03]} g5 {[%emt 0:00:49]} 10. b4 {[%emt 0:00:10]} Ne7 {[%emt 0:00:17]} 11. d4 {[%emt 0:12:11]} Ng6 {[%emt 0:04:03]} 12. Kh1 {[%emt 0:11:06]} g4 {[%emt 0:12:13]} 13. Ng1 {[%emt 0:07:10]} exd4 {[%emt 0:05:30]} 14. Bb2 {[%emt 0:11:36]} d3 {[%emt 0:09:59]} 15. f3 {[%emt 0:02:29]} g3 {[%emt 0:10:34]} 16. Bxd3 {[%emt 0:02:04]} Nf4 {[%emt 0:04:47]} 17. Nf1 {[%emt 0:17:54]} gxh2 {[%emt 0:03:42]} 18. Ne2 {[%emt 0:00:21]} Nxg2 {[%emt 0:07:07]} 19. Nxh2 {[%emt 0:15:14]} Rg8 {[%emt 0:06:14]} 20. c4 {[%emt 0:05:07]} Nh5 {[%emt 0:02:32]} 21. c5 {[%emt 0:00:15]} Nxe1 {[%emt 0:02:31]} 22. Qxe1 {[%emt 0:00:05]} Bh3 {[%emt 0:00:42]} 23. Qf2 {[%emt 0:07:01]} Bg2+ {[%emt 0:00:33]} 24. Kg1 {[%emt 0:00:02]} dxc5 {[%emt 0:02:08]} 25. Rd1 {[%emt 0:00:40]} c4 {[%emt 0:00:34]} 0-1

[Event "French Top 16-A 2024"]
[Site "Chartres"]
[Date "2024.06.05"]
[Round "7.15"]
[White "Tahay, Alexis"]
[Black "Pelletier, Yannick"]
[Result "0-1"]
[ECO "C11"]
[WhiteElo "2376"]
[BlackElo "2515"]
[Annotator "RC"]
[PlyCount "78"]
[EventDate "2024.06.01"]
[EventType "team-tourn"]
[EventCountry "FRA"]
[SourceTitle "playchess.com"]
[Source "ChessBase"]
[SourceQuality "1"]
[TimeControl "40/5400+30:1800+30"]

1. e4 {[%emt 0:02:50]} e6 {[%emt 0:00:09]} 2. d4 {[%emt 0:00:04]} d5 {[%emt 0:00:07]} 3. Nc3 {[%emt 0:00:04]} Nf6 {[%emt 0:00:19]} 4. e5 {[%emt 0:00:05]} Nfd7 {[%emt 0:00:07]} 5. f4 {[%emt 0:00:05]} c5 {[%emt 0:00:20]} 6. Nf3 {[%emt 0:00:08]} Nc6 {[%emt 0:00:06]} 7. Be3 {[%emt 0:00:06]} a6 {[%emt 0:00:18]} 8. Be2 {[%emt 0:01:54]} Qb6 {[%emt 0:03:22]} 9. Na4 {[%emt 0:09:14]} Qa5+ {[%emt 0:00:32]} 10. c3 {[%emt 0:00:38]} cxd4 {[%emt 0:16:13]} 11. b4 {[%emt 0:00:51]} Qc7 {[%emt 0:08:34]} 12. Nxd4 {[%emt 0:00:33]} Nxd4 {[%emt 0:01:16]} 13. Bxd4 {[%emt 0:04:29]} Be7 {[%emt 0:15:10]} 14. O-O {[%emt 0:04:44]} b5 {[%emt 0:11:43]} 15. Nb2 {[%emt 0:00:08]} Nb6 {[%emt 0:00:04]} 16. a4 {[%emt 0:18:46]} Bd7 {[%emt 0:01:13]} 17. axb5 {[%emt 0:00:14]} Bxb5 {[%emt 0:05:51]} 18. Bxb5+ {[%emt 0:00:35]} axb5 {[%emt 0:00:06]} 19. Qd3 {[%emt 0:10:57]} Qc6 {[%emt 0:00:44]} 20. Rxa8+ {[%emt 0:04:56]} Nxa8 {[%emt 0:00:05]} 21. Ra1 {[%emt 0:00:37]} O-O {[%emt 0:01:53]} 22. Ra7 {[%emt 0:04:11]} Nc7 {[%emt 0:00:20]} 23. Qb1 {[%emt 0:00:13]} Ra8 {[%emt 0:06:49]} 24. Qa2 {[%emt 0:01:01]} Rxa7 {[%emt 0:00:43]} 25. Qxa7 {[%emt 0:00:07]} g5 {[%emt 0:01:17]} 26. Bc5 {[%emt 0:05:32]} Bxc5+ {[%emt 0:04:16]} 27. bxc5 {[%emt 0:00:21]} d4 {[%emt 0:02:15]} 28. cxd4 {[%emt 0:20:13]} Qe4 {[%emt 0:00:52]} 29. h3 {[%emt 0:00:01]} Qe3+ {[%emt 0:06:42]} 30. Kh1 {[%emt 0:00:19]} Qc1+ {[%emt 0:00:17]} 31. Kh2 {[%emt 0:00:03]} Qxf4+ {[%emt 0:00:09]} 32. Kh1 {[%emt 0:00:02]} Qf1+ {[%emt 0:01:38]} 33. Kh2 {[%emt 0:00:05]} Qf4+ {[%emt 0:00:05]} 34. Kh1 {[%emt 0:00:04]} Nd5 {[%emt 0:00:12]} 35. Qb8+ {[%emt 0:00:48]} Kg7 {[%emt 0:00:21]} 36. Qxb5 {[%emt 0:03:37]} Qf2 {[%emt 0:07:58]} 37. Na4 {[%emt 0:06:56]} Nf4 {[%emt 0:00:42]} 38. Qb7 {[%emt 0:00:01]} Qf1+ {[%emt 0:00:28]} 39. Kh2 {[%emt 0:00:03]} Ne2 {[%emt 0:00:07]} 0-1

[Event "French Top 16-A 2024"]
[Site "Chartres"]
[Date "2024.06.05"]
[Round "7.16"]
[White "Guichard, Pauline"]
[Black "Mathieu, Phileas"]
[Result "1-0"]
[ECO "D90"]
[WhiteElo "2362"]
[BlackElo "2302"]
[Annotator "RC"]
[PlyCount "45"]
[EventDate "2024.06.01"]
[EventType "team-tourn"]
[EventCountry "FRA"]
[SourceTitle "playchess.com"]
[Source "ChessBase"]
[SourceQuality "1"]
[TimeControl "40/5400+30:1800+30"]

1. d4 {[%emt 0:00:02]} Nf6 {[%emt 0:02:59]} 2. c4 {[%emt 0:00:08]} g6 {[%emt 0:00:03]} 3. Nc3 {[%emt 0:00:09]} d5 {[%emt 0:00:03]} 4. Nf3 {[%emt 0:00:15]} Bg7 {[%emt 0:00:11]} 5. h4 {[%emt 0:00:13]} dxc4 {[%emt 0:06:01]} 6. e4 {[%emt 0:00:27]} c5 {[%emt 0:01:41]} 7. d5 {[%emt 0:00:32]} b5 {[%emt 0:02:06]} 8. h5 {[%emt 0:01:17]} O-O {[%emt 0:02:29]} 9. hxg6 {[%emt 0:00:50]} fxg6 {[%emt 0:00:19]} 10. e5 {[%emt 0:00:27]} Ng4 {[%emt 0:06:02]} 11. d6 {[%emt 0:01:00]} Be6 {[%emt 0:13:51]} 12. Bg5 {[%emt 0:24:19]} Qd7 {[%emt 0:35:48]} 13. dxe7 {[%emt 0:18:06]} Re8 {[%emt 0:05:05]} 14. Qxd7 {[%emt 0:07:39]} Bxd7 {[%emt 0:00:18]} 15. a4 {[%emt 0:01:29]} Nxe5 {[%emt 0:07:49]} 16. Nxe5 {[%emt 0:01:06]} Bxe5 {[%emt 0:00:02]} 17. axb5 {[%emt 0:00:19]} Be6 {[%emt 0:08:37]} 18. Be2 {[%emt 0:04:16]} Nd7 {[%emt 0:01:40]} 19. Bf3 {[%emt 0:00:14]} Rab8 {[%emt 0:00:13]} 20. Bc6 {[%emt 0:04:46]} Kg7 {[%emt 0:02:41]} 21. Rxa7 {[%emt 0:01:00]} Bf6 {[%emt 0:00:02]} 22. Bxf6+ {[%emt 0:05:31]} Kxf6 {[%emt 0:00:10]} 23. Rxh7 {[%emt 0:00:12]} 1-0

[Event "French Top 16-A 2024"]
[Site "Chartres"]
[Date "2024.06.05"]
[Round "7.16"]
[White "Broly, Mathilde"]
[Black "Delorme, Laurie"]
[Result "1/2-1/2"]
[ECO "C99"]
[WhiteElo "2097"]
[BlackElo "2075"]
[Annotator "RC"]
[PlyCount "86"]
[EventDate "2024.06.01"]
[EventType "team-tourn"]
[EventCountry "FRA"]
[SourceTitle "playchess.com"]
[Source "ChessBase"]
[SourceQuality "1"]
[TimeControl "40/5400+30:1800+30"]

1. e4 {[%emt 0:00:59]} e5 {[%emt 0:01:32]} 2. Nf3 {[%emt 0:00:08]} Nc6 {[%emt 0:00:10]} 3. Bb5 {[%emt 0:00:08]} a6 {[%emt 0:00:59]} 4. Ba4 {[%emt 0:00:07]} Nf6 {[%emt 0:00:44]} 5. O-O {[%emt 0:00:30]} Be7 {[%emt 0:00:41]} 6. Re1 {[%emt 0:00:27]} b5 {[%emt 0:00:07]} 7. Bb3 {[%emt 0:00:06]} O-O {[%emt 0:00:04]} 8. c3 {[%emt 0:00:15]} d6 {[%emt 0:01:29]} 9. h3 {[%emt 0:00:08]} Na5 {[%emt 0:02:16]} 10. Bc2 {[%emt 0:02:03]} c5 {[%emt 0:00:08]} 11. d4 {[%emt 0:00:06]} Qc7 {[%emt 0:00:45]} 12. Nbd2 {[%emt 0:00:22]} cxd4 {[%emt 0:05:16]} 13. cxd4 {[%emt 0:01:31]} Nc6 {[%emt 0:00:15]} 14. Nb3 {[%emt 0:00:22]} a5 {[%emt 0:01:18]} 15. Be3 {[%emt 0:00:10]} a4 {[%emt 0:00:05]} 16. Nbd2 {[%emt 0:00:06]} Bd7 {[%emt 0:01:06]} 17. Nf1 {[%emt 0:07:04]} Rfc8 {[%emt 0:06:21]} 18. Re2 {[%emt 0:04:27]} Qb7 {[%emt 0:09:39]} 19. Ng3 {[%emt 0:05:59]} Bf8 {[%emt 0:01:09]} 20. Bg5 {[%emt 0:12:03]} Ne8 {[%emt 0:00:54]} 21. Rd2 {[%emt 0:00:42]} Rc7 {[%emt 0:00:57]} 22. Nf5 {[%emt 0:03:10]} f6 {[%emt 0:01:38]} 23. Be3 {[%emt 0:07:46]} Nd8 {[%emt 0:04:22]} 24. d5 {[%emt 0:08:45]} Nf7 {[%emt 0:01:54]} 25. g4 {[%emt 0:17:33]} g6 {[%emt 0:00:40]} 26. Ng3 {[%emt 0:00:52]} Ng7 {[%emt 0:01:19]} 27. Bd3 {[%emt 0:02:28]} Be7 {[%emt 0:11:18]} 28. Kg2 {[%emt 0:04:21]} Bd8 {[%emt 0:09:50]} 29. Rc1 {[%emt 0:08:26]} Rxc1 {[%emt 0:07:16]} 30. Qxc1 {[%emt 0:01:12]} Rc8 {[%emt 0:00:33]} 31. Rc2 {[%emt 0:00:20]} Rxc2 {[%emt 0:00:30]} 32. Qxc2 {[%emt 0:00:09]} Bb6 {[%emt 0:00:26]} 33. Bxb6 {[%emt 0:03:07]} Qxb6 {[%emt 0:00:06]} 34. b4 {[%emt 0:03:45]} axb3 {[%emt 0:03:19]} 35. Qxb3 {[%emt 0:01:37]} Qc5 {[%emt 0:03:28]} 36. Qc2 {[%emt 0:01:09]} h6 {[%emt 0:01:08]} 37. Nd2 {[%emt 0:01:03]} Nd8 {[%emt 0:02:55]} 38. Nb3 {[%emt 0:01:45]} Qb6 {[%emt 0:00:11]} 39. Qd2 {[%emt 0:00:23]} Kh7 {[%emt 0:01:30]} 40. Qa5 {[%emt 0:00:19]} Qxa5 {[%emt 0:05:31]} 41. Nxa5 {[%emt 0:30:10]} Ne8 {[%emt 0:30:10]} 42. a3 {[%emt 0:00:00]} Nc7 {[%emt 0:00:00]} 43. f3 {[%emt 0:00:00]} Kg7 {[%emt 0:00:00]} 1/2-1/2